Cogmind - Beta 13 @@@ ROGUE MODE // 2024.05.19 @ 20:43:25 Player: dp-fld Result: Destroyed by P-80 Master with Gamma Rifle Performance ------------- Evolutions (9) 4500 Regions Visited (33) 6600 Robots Destroyed (242) 1210 Value Destroyed (8010) 8010 Prototype IDs (83) 1660 Alien Tech Used (5) 1000 Bonus (6970) 6970 TOTAL SCORE: 29950 Bonus ------- High Alert Combat Kills 1428 Follower Combat Kills 1389 Met Data Miner 300 Met Warlord at Base 500 MAIN.C Attacked Warlord 500 Built Enhanced Grunts 300 Met R17 at Cetus 500 Met R17 at Research 2000 Met Warlord at Research 2000 Met Sigix 2000 Friendly Fire -3947 Cogmind --------- Core Integrity 0/1600 Matter 10/300 Energy 80/100 System Corruption 46% Temperature Cool (0) Movement Core (50) Location -1/Access Parts ------- > --- POWER (3) -------- (None) > --- PROPULSION (8) --- (None) > --- UTILITY (12) ----- Advanced Signal Interpreter Experimental Core Analyzer Armor Integrity Analyzer Ghost Barrier > --- WEAPON (3) ------- (None) > --- INVENTORY (5) ---- Experimental Energy Well (600) Experimental Terrain Scanner Experimental Terrain Scanner Subatomic Replicator Peak State ------------ > --- POWER ------------ Micro Antimatter Reactor Micro Antimatter Reactor Micro Antimatter Reactor > --- PROPULSION ------- Cooled Field Propulsion Drive Cooled Field Propulsion Drive Cooled Field Propulsion Drive Electron Diverter Improved Diametric Drive Improved Diametric Drive Experimental Q-thruster Experimental Q-thruster > --- UTILITY ---------- Experimental Power Amplifier Advanced Cooling System Large Storage Unit Advanced Gravity Neutralizer Spectral Analyzer Experimental Sensor Array Advanced Signal Interpreter Experimental Target Analyzer Experimental Core Analyzer Experimental Reaction Control System System Mapper Ghost Barrier > --- WEAPON ----------- Helical Railgun Particle Cleaver > --- INVENTORY -------- Cooled Field Propulsion Drive Experimental Heat Sink Experimental Energy Well Structural Scanner Advanced Kinecellerator Advanced Weapon Cycler Centrium Light Armor Plating Graphene Brace Advanced Force Field Phase Redirector Experimental System Shield Improved Component Analysis Suite Subatomic Replicator Fusion Bomb Launcher Z-bomb Delivery System [Rating: 219] Favorites ----------- Power Micro Antimatter Reactor Engine Heavy Ion Engine Power Core Micro Nuclear Core Reactor Micro Antimatter Reactor Propulsion Improved Cesium-ion Thruster Treads Light Treads Leg Aluminum Leg Wheel Subdweller Monowheel Hover Unit Antigrav System Flight Unit Improved Cesium-ion Thruster Utility Advanced Signal Interpreter Device Advanced Sensor Array Storage Medium Storage Unit Processor Advanced Signal Interpreter Hackware System Mapper Protection Improved Light Armor Plating Weapon Enhanced Autogun Energy Gun Cooled Pulse Rifle Energy Cannon Enhanced Nova Cannon Ballistic Gun Enhanced Autogun Ballistic Cannon Compact Linear Accelerator Launcher Grenade Launcher Impact Weapon Powered Hammer Slashing Weapon Power Sword Piercing Weapon Force Lance Special Melee Weapon Dirty Datajack Build | -11 -10 -10 -8 -7 -7 -7 -7 -7 -7 -6 -6 -6 -6 -6 -5 -5 -5 -5 -5 -5 -5 -4 -4 -4 -4 -4 -4 -3 -3 -3 -2 -2 -1 ------- Run | Yrd Mat Sub Mat Fac Was Fac Low Low Zio Pro Fac Low Low Dat Pro Fac Was Fac Upp Upp War Pro Fac Ext Cet Arc Hub Res Qua Sec Res Tes Acc Slots Evolved 18 | . . . 4 2 . . . . . . 2 . . . . 2 . . . . . . 2 . . . . 2 . . 2 . 2 Power 2 | . . . . . . . . . . . . . . . . 1 . . . . . . . . . . . 1 . . . . . Propulsion 5 | . . . 2 2 . . . . . . . . . . . . . . . . . . . . . . . . . . 1 . . Utility 10 | . . . 2 . . . . . . . 2 . . . . 1 . . . . . . 2 . . . . 1 . . 1 . 1 Weapon 1 | . . . . . . . . . . . . . . . . . . . . . . . . . . . . . . . . . 1 Parts Attached 486 | 2 13 10 67 12 . 17 7 13 6 . 37 2 1 1 . 10 10 3 7 1 16 2 13 17 9 16 . 36 4 4 56 29 65 Power 47 | . 2 2 4 . . 1 . . . . 3 . . . . 2 4 . . . . . 1 3 . 2 . 7 . . 9 1 6 Engine 14 | . 2 2 4 . . . . . . . . . . . . 1 . . . . . . . 1 . 1 . . . . 2 . 1 Core 13 | . . . . . . 1 . . . . 3 . . . . 1 4 . . . . . 1 2 . . . . . . . . 1 Reactor 20 | . . . . . . . . . . . . . . . . . . . . . . . . . . 1 . 7 . . 7 1 4 Propulsion 97 | . 6 2 26 2 . . 1 . . . 13 . . . . 4 . . . . 3 . 2 8 2 4 . 13 . . 5 1 5 Treads 19 | . . 1 8 . . . . . . . . . . . . . . . . . . . . . 2 4 . . . . . . 4 Leg 20 | . 6 . 13 . . . . . . . . . . . . . . . . . . . . 1 . . . . . . . . . Wheel 1 | . . 1 . . . . . . . . . . . . . . . . . . . . . . . . . . . . . . . Hover 1 | . . . . . . . . . . . . . . . . . . . . . . . . 1 . . . . . . . . . Flight 56 | . . . 5 2 . . 1 . . . 13 . . . . 4 . . . . 3 . 2 6 . . . 13 . . 5 1 1 Utility 219 | 1 1 1 16 2 . 14 5 11 4 . 14 . . . . 2 5 2 3 1 11 2 7 4 6 7 . 8 4 4 29 19 36 Device 153 | 1 . . 4 1 . 14 4 10 3 . 5 . . . . . 4 1 2 1 6 1 5 3 3 5 . 4 1 4 22 18 31 Storage 18 | . 1 . 5 . . . . . . . . . . . . . . . . . 2 . . 1 2 . . . 2 . 3 . 2 Processor 11 | . . . 1 1 . . . . 1 . 3 . . . . . . . . . 1 1 . . . . . . . . 1 1 1 Hackware 6 | . . . . . . . . . . . 2 . . . . 1 . . . . 1 . . . . . . . . . 1 . 1 Protection 31 | . . 1 6 . . . 1 1 . . 4 . . . . 1 1 1 1 . 1 . 2 . 1 2 . 4 1 . 2 . 1 Artifact . | . . . . . . . . . . . . . . . . . . . . . . . . . . . . . . . . . . Weapon 123 | 1 4 5 21 8 . 2 1 2 2 . 7 2 1 1 . 2 1 1 4 . 2 . 3 2 1 3 . 8 . . 13 8 18 Energy Gun 14 | . . . 12 . . . . . . . . . . . . . . . . . . . . . . 1 . . . . . . 1 Energy Cannon 4 | . . . 1 . . . . . . . . . . . . . . . . . . . . . . . . . . . . 1 2 Ballistic Gun 49 | 1 4 3 3 5 . . . 2 1 . 3 . . 1 . 2 1 . . . 1 . . 1 1 2 . 5 . . 6 4 3 Ballistic Cannon 4 | . . . . . . . . . . . . . . . . . . . . . . . . . . . . . . . 1 . 3 Launcher 25 | . . 2 3 . . 1 . . 1 . 1 1 . . . . . 1 2 . 1 . 1 . . . . . . . . 2 9 Special Weapon . | . . . . . . . . . . . . . . . . . . . . . . . . . . . . . . . . . . Impact Weapon 8 | . . . 1 3 . 1 1 . . . 2 . . . . . . . . . . . . . . . . . . . . . . Slashing Weapon 17 | . . . . . . . . . . . 1 1 1 . . . . . 2 . . . 1 1 . . . 3 . . 6 1 . Piercing Weapon 1 | . . . . . . . . . . . . . . . . . . . . . . . 1 . . . . . . . . . . Special Melee Weapon 1 | . . . 1 . . . . . . . . . . . . . . . . . . . . . . . . . . . . . . Unidentified Prototypes 46 | . . . 7 . . . 1 . 1 . 4 . . . . 1 . . . . 5 1 . . 4 . . 2 1 3 9 3 4 Corrupted Parts 2 | . . . . . . . . . . . . . . . . . . . . . . . . . 1 1 . . . . . . . System Corruption 8 | . . . . . . . . . . . . . . . . . . . . . . . . . 1 7 . . . . . . . Parts Lost 61 | . 2 2 10 . . . . . . . 1 . . . . 2 . . . . . . 4 3 3 1 . . . . . . 33 Power 12 | . . 1 2 . . . . . . . . . . . . 1 . . . . . . 1 . . 1 . . . . . . 6 Propulsion 20 | . . . 4 . . . . . . . . . . . . 1 . . . . . . 2 2 1 . . . . . . . 10 Utility 17 | . . . 2 . . . . . . . 1 . . . . . . . . . . . . 1 2 . . . . . . . 11 Weapon 12 | . 2 1 2 . . . . . . . . . . . . . . . . . . . 1 . . . . . . . . . 6 Highest Loss Streak 14 | . 2 1 3 . . . . . . . 1 . . . . 2 . . . . . . 4 1 3 1 . . . . . . 14 To Critical Strikes . | . . . . . . . . . . . . . . . . . . . . . . . . . . . . . . . . . . Average Slot Usage (%) 96 | . 99 100 98 98 100 100 100 100 99 100 99 100 100 93 100 99 100 100 100 100 99 100 97 95 89 88 90 94 98 92 99 100 78 Engine 3 | . 14 14 8 7 7 3 . . . . . . . . . . 2 . . . . . . . 5 2 5 3 . . . . . Core 3 | . . . . . . 3 7 7 7 7 6 6 6 6 6 10 8 11 11 11 11 11 9 9 5 2 . . . . . . . Reactor 2 | . . . . . . . . . . . . . . . . . . . . . . . . . . 4 5 6 12 9 11 12 6 Treads 4 | . . 6 19 . . . . . . . . . . . . . . . . . . . . . 7 15 20 3 . . . . 3 Leg 5 | . 28 14 15 . . . . . . . . . . . . . . . . . . . . . . . . . . . . . . Flight 24 | . . . . 46 46 46 49 50 50 50 42 43 43 43 43 37 38 38 38 38 38 38 33 29 16 9 5 24 31 31 33 33 19 Device 12 | . 14 1 10 11 7 7 6 7 6 7 11 12 12 12 12 11 13 14 15 16 8 5 11 14 13 13 15 17 16 11 15 15 15 Storage 6 | . 14 14 9 7 7 7 7 7 7 7 6 6 6 6 6 5 5 5 5 5 8 5 5 5 5 2 . . . 4 4 4 2 Processor 12 | . . . 7 9 15 15 14 14 14 14 12 12 12 12 12 11 11 11 11 11 14 21 20 20 20 20 20 18 18 18 16 16 12 Hackware 2 | . . . . . . . . . . . 1 . . . . 1 5 5 5 5 5 5 5 5 5 5 5 4 4 4 4 4 6 Protection 3 | . . 12 8 . . . . . . . 4 6 6 6 6 9 2 2 . . . . 3 . 1 3 5 4 4 4 4 4 . Energy Gun 2 | . . . 15 . . . . . . . . . . . . . . . . . . . . . . 1 . . . . . . . Ballistic Gun 7 | . 27 22 1 9 15 9 7 7 6 7 6 6 6 . 6 5 5 5 3 . 4 5 5 8 6 8 10 6 4 4 4 3 1 Slashing Weapon 1 | . . . . . . . . . . . . 3 5 6 6 5 5 5 3 5 4 . 2 . 3 . . 2 4 4 3 4 . Naked Turns . | . . . . . . . . . . . . . . . . . . . . . . . . . . . . . . . . . . Heaviest Build 105 | 12 32 37 105 27 22 23 25 23 23 23 31 27 27 27 27 35 37 37 37 33 44 35 38 38 39 57 50 66 46 46 70 69 84 Greatest Support 240 | 20 20 20 83 30 25 25 35 35 25 25 39 29 29 29 29 35 41 41 44 41 44 43 50 41 160 216 216 216 60 48 71 71 240 Greatest Overweight (x) 4 | . 1 1 4 . . . . . . . . . . . . . . . . . 1 . . 2 . . . 1 . . 1 . 1 Average Overweight (x) . | . . 1 . . . . . . . . . . . . . . . . . . . . . . . . . . . . . . . Largest Inventory Capacity 25 | 8 15 15 25 10 10 10 10 10 10 10 10 10 10 10 10 10 10 10 10 10 10 10 10 10 5 5 5 5 20 10 15 15 15 Average Capacity 11 | 8 12 15 20 10 10 10 10 10 10 10 10 10 10 10 10 10 10 10 10 10 10 10 10 6 5 5 5 5 6 10 13 15 12 Most Carried 25 | 7 15 15 25 10 10 10 10 10 10 10 10 10 10 10 10 10 10 10 10 10 10 10 10 10 5 5 5 5 10 10 15 15 15 Average Carried 10 | 6 11 14 17 9 10 10 9 9 9 10 9 10 10 10 10 9 9 9 10 10 9 10 9 6 4 4 5 4 6 10 13 14 11 Final Capacity 15 | 8 15 15 10 10 10 10 10 10 10 10 10 10 10 10 10 10 10 10 10 10 10 10 10 5 5 5 5 5 10 10 15 15 5 Final Carried 15 | 7 15 15 10 10 10 10 9 10 10 10 10 10 10 10 10 8 10 10 10 10 10 10 10 5 5 5 5 5 10 10 15 15 4 Class Distribution -------------------- 26% | Scout 19% | Mutant 18% | Scavenger-Scout 16% | Scavenger-Mutant 6% | Hacker-Scout Dominant Class ---------------- Scavenger-Mutant | -10/Materials Mutant | -10/Subcaves Mutant | -8/Materials Sprinter | -7/Factory Scout | -7/Waste Scout | -7/Factory Scout | -7/Lower Caves Scout | -7/Lower Caves Scout | -7/Zion Scout | -6/Proximity Caves Scout | -6/Factory Scout | -6/Lower Caves Scout | -6/Lower Caves Scout | -6/Data Miner Scout | -5/Proximity Caves Scout | -5/Factory Scout | -5/Waste Scavenger-Scout | -5/Factory Scavenger-Scout | -5/Upper Caves Scavenger-Scout | -5/Upper Caves Ninja | -5/Warlord Hacker-Scout | -4/Proximity Caves Hacker-Scout | -4/Factory Scavenger-Scout | -4/Extension Scavenger-Mutant | -4/Cetus Scavenger-Mutant | -4/Archives Scavenger-Mutant | -4/Hub_04(d) Scavenger-Scout | -3/Research Scavenger-Scout | -3/Quarantine Scavenger-Ninja | -3/Section 7 Scavenger-Scout | -2/Research Scavenger-Scout | -2/Testing Hacker-Scout | -1/Access Resources | -11 -10 -10 -8 -7 -7 -7 -7 -7 -7 -6 -6 -6 -6 -6 -5 -5 -5 -5 -5 -5 -5 -4 -4 -4 -4 -4 -4 -3 -3 -3 -2 -2 -1 ----------- Run | Yrd Mat Sub Mat Fac Was Fac Low Low Zio Pro Fac Low Low Dat Pro Fac Was Fac Upp Upp War Pro Fac Ext Cet Arc Hub Res Qua Sec Res Tes Acc Matter Collected 8158 | 247 436 168 783 281 93 52 190 110 40 130 376 . 71 . 16 137 120 . 54 . 356 54 70 617 185 405 62 689 40 . 935 75 1366 Remotely 72 | . . . . . . . . . . . . . . . . . . . . . . . . . . . . . . . . . 72 Salvage Created 11054 | 170 582 204 1581 173 . 77 . . . 12 1106 . 45 . . 506 575 27 55 . . . 196 832 331 412 22 1075 961 55 653 171 1233 Parts 524 | 12 35 10 76 23 . . . . . 6 27 . 7 . . 17 21 3 2 . . . 28 41 16 28 3 43 26 3 27 10 60 Haulers Intercepted 16 | . 2 . 5 . . . . . . . 5 . . . . 1 . . . . . . . . . . . 2 . . . . 1 Recyclers Shooed 9 | . . . . . . . . . . . 1 . . . . . . . . . . . . . . . . 1 6 . . . 1 Parts Field Recycled . | . . . . . . . . . . . . . . . . . . . . . . . . . . . . . . . . . . Retrieved Matter . | . . . . . . . . . . . . . . . . . . . . . . . . . . . . . . . . . . Parts Self-Destructed 23 | . . 4 . . . . . 4 . 5 . . 7 . . . . . 2 . . 1 . . . . . . . . . . . Prevented 3 | . . . . . . . 2 . . . . . . . 1 . . . . . . . . . . . . . . . . . . Kills | -11 -10 -10 -8 -7 -7 -7 -7 -7 -7 -6 -6 -6 -6 -6 -5 -5 -5 -5 -5 -5 -5 -4 -4 -4 -4 -4 -4 -3 -3 -3 -2 -2 -1 ------- Run | Yrd Mat Sub Mat Fac Was Fac Low Low Zio Pro Fac Low Low Dat Pro Fac Was Fac Upp Upp War Pro Fac Ext Cet Arc Hub Res Qua Sec Res Tes Acc Combat Hostiles Destroyed 112 | . 13 6 29 . . . . . . 2 2 . 3 . . . . . 2 . . . 5 5 3 1 . 6 . . 8 5 22 Melee 2 | . . . . . . . . . . . 2 . . . . . . . . . . . . . . . . . . . . . . Guns 64 | . 13 3 21 . . . . . . . . . . . . . . . . . . . 1 5 3 1 . 6 . . 8 . 3 Cannons 2 | . . . . . . . . . . . . . . . . . . . . . . . . . . . . . . . . . 2 AOE 44 | . . 3 8 . . . . . . 2 . . 3 . . . . . 2 . . . 4 . . . . . . . . 5 17 Classes Destroyed 20 | 2 3 2 3 2 . 1 . . . 1 1 . . . . . 1 . . . . . 1 . . . . 1 . 1 1 . . Worker 9 | . . . 2 . . . . . . . . . . . . . . . . . . . 1 . . . . 1 . . . 1 4 Builder 23 | . . . . 7 . . . . . . 2 . . . . . . 1 . . . . 5 1 . . . 3 . . . 1 3 Tunneler 6 | 4 . . 1 . . . . . . . . . . . . . . . . . . . . . . . . 1 . . . . . Hauler 16 | . 2 . 5 . . . . . . . 5 . . . . 1 . . . . . . . . . . . 2 . . . . 1 Recycler 20 | 1 . . 1 . . . . . . . 2 . . . . 2 . . . . . . . 2 . . . 1 7 . . . 4 Operator 18 | . . . . . . 1 . . . . 2 . . . . 1 . . . . . . . . . 10 1 1 . . . 1 1 Drone 2 | . . . . . . . . . . 2 . . . . . . . . . . . . . . . . . . . . . . . Watcher 24 | . . . . 2 . 2 . . . . 4 . . . . 3 . . . . . . . 3 1 . . 3 2 . 2 1 1 Swarmer 26 | . 3 . 7 . . . . . . . . . 3 . . . . . 1 . . . 2 . . . . . . . . 4 6 Cutter 5 | . . . . . . . . . . . . . . . . . . . . . . . 3 . . . . . . . . . 2 Grunt 36 | . 10 . 12 . . . . . . . . . . . . . . . 1 . . . . 3 . . . 2 . . 5 . 3 Duelist 1 | . . . 1 . . . . . . . . . . . . . . . . . . . . . . . . . . . . . . Researcher 1 | . . . . . . . . . . . . . . . . . . . . . . . . . . . . . . 1 . . . Sentry 14 | . . 1 8 . . . . . . . . . . . . . . . . . . . . 2 . 1 . 1 . . . . 1 Hunter 5 | . . . 1 . . . . . . . . . . . . . . . . . . . . . . . . 3 . . . . 1 Programmer 14 | . . . . . . . . . . . 2 . . . . . . . . . . . . . . . . . . . 2 1 9 Cetus Guard 3 | . . . . . . . . . . . . . . . . . . . . . . . . . 3 . . . . . . . . Striker 1 | . . . . . . . . . . . . . . . . . . . . . . . . . . . . . . . 1 . . Subdweller 5 | . . 5 . . . . . . . . . . . . . . . . . . . . . . . . . . . . . . . Wasp 8 | . . . . . . . . . . . . . . . . . 8 . . . . . . . . . . . . . . . . Thug 1 | . . . . . . . . . . . . . . . . . 1 . . . . . . . . . . . . . . . . Butcher 1 | . . . . . . . . . . . . . . . . . . . . . . . . 1 . . . . . . . . . Martyr 1 | . . . . . . . . . . . . . . . . . 1 . . . . . . . . . . . . . . . . Guerrilla 1 | . . . . . . . . . . . . . . . . . . . . . . . . . 1 . . . . . . . . Revision 1 | . . . . . . . . . . . . . . . . . . . . . . . . . . . . 1 . . . . . Best Kill Streak 8 | 4 3 3 6 2 . 1 . . . 2 2 . 3 . . 2 . 1 2 . . . 8 2 3 3 1 4 2 1 2 8 7 Combat Bots Only 5 | . 3 3 5 . . . . . . 2 1 . 3 . . . . . 2 . . . 5 2 3 1 . 2 . . 2 5 4 Max Kills in Single Turn 3 | 1 1 1 2 1 . 1 . . . 1 1 . 3 . . 1 1 1 1 . . . 2 2 1 1 1 2 1 1 1 3 3 Gunslinging . | . . . . . . . . . . . . . . . . . . . . . . . . . . . . . . . . . . Exploded 3 | . . 1 2 . . . . . . 1 . . 3 . . . . . 1 . . . 2 . . . . . . . . 2 3 Melee 1 | . . . . . . . . . . . 1 . . . . . . . . . . . . . . . . . . . . . . Uniques/NPCs Destroyed . | . . . . . . . . . . . . . . . . . . . . . . . . . . . . . . . . . . Combat | -11 -10 -10 -8 -7 -7 -7 -7 -7 -7 -6 -6 -6 -6 -6 -5 -5 -5 -5 -5 -5 -5 -4 -4 -4 -4 -4 -4 -3 -3 -3 -2 -2 -1 -------- Run | Yrd Mat Sub Mat Fac Was Fac Low Low Zio Pro Fac Low Low Dat Pro Fac Was Fac Upp Upp War Pro Fac Ext Cet Arc Hub Res Qua Sec Res Tes Acc Hostile Shots Fired 1183 | . 69 35 212 . . 5 14 2 . . 28 . 6 . . 20 . 1 4 1 2 2 59 43 23 5 . 34 31 8 25 22 532 Missed 439 | . 10 9 58 . . 1 6 1 . . 11 . 2 . . 10 . . 1 1 1 2 28 24 10 1 . 8 18 5 8 12 212 Damage Taken 15035 | . 637 540 2261 . . 61 78 20 . . 173 . 106 . . 298 . 27 94 . 18 . 606 376 271 126 49 497 300 57 316 228 7896 Core 2660 | . 88 103 394 . . 15 5 20 . . 56 . . . . . . . 48 . . . 51 65 37 . . 54 22 . 21 75 1606 Absorbed by Shields 185 | . . . . . . . . . . . . . . . . . . . . . . . . 16 76 . . . . . . . 93 Reduced by Siege Mode 42 | . . . . . . . . . . . . . . . . . . . . . . . . . . . . . . . . . 42 Redirected to Shielding 104 | . . . . . . . . . . . . . . . . . . . . . . . . . . . . . . . . . 104 Ignored by Resistances 40 | . . . . . . . . . . . . . . . . . . . . . . . . . . . 13 27 . . . . . Regen/Repaired (Parts) 582 | . . . 57 . . . . . . . 72 . . . . . 116 90 . . 12 . . . . . . 235 . . . . . Core Remaining (%) 78 | 100 . 23 28 . . . . . . 94 . . . . 93 . . . . . . 95 . . . . 86 . . 94 . 93 . Volleys Fired 605 | 9 56 21 106 19 . 1 1 . . 5 3 . 3 . . 3 . . 9 . 7 6 13 53 21 54 1 48 . 2 60 5 99 Largest 3 | 2 2 2 2 2 . 1 1 . . 1 2 . 1 . . 1 . . 2 . 1 1 2 2 2 2 2 2 . 1 2 1 3 Hottest 202 | 60 40 50 50 50 . 25 25 . . 30 58 . 30 . . 25 . . 60 . 30 30 60 60 65 94 70 70 . 38 76 52 202 Shots Fired 963 | 18 110 42 197 36 . 2 1 . . 5 5 . 3 . 1 3 . . 11 . 7 6 14 88 25 79 2 82 . 2 108 5 111 Gun 852 | 18 110 37 190 36 . 2 1 . . . 5 . . . 1 3 . . 3 . 2 6 10 88 25 79 2 82 . 2 108 2 40 Cannon 45 | . . . . . . . . . . . . . . . . . . . . . . . . . . . . . . . . . 45 Launcher 66 | . . 5 7 . . . . . . 5 . . 3 . . . . . 8 . 5 . 4 . . . . . . . . 3 26 Special . | . . . . . . . . . . . . . . . . . . . . . . . . . . . . . . . . . . Kinetic 705 | 9 110 37 41 36 . 2 1 . . . 5 . . . 1 3 . . 3 . 2 6 10 88 25 73 2 82 . 2 108 2 57 Thermal 192 | 9 . . 149 . . . . . . . . . . . . . . . . . . . . . . 6 . . . . . . 28 Explosive 66 | . . 5 7 . . . . . . 5 . . 3 . . . . . 8 . 5 . 4 . . . . . . . . 3 26 Electromagnetic . | . . . . . . . . . . . . . . . . . . . . . . . . . . . . . . . . . . Robot Hit Streak 19 | 7 7 19 17 7 . 8 . . . . 12 . . . 1 2 . . 1 . 2 1 3 9 11 7 3 9 . 3 9 3 6 Robot Miss Streak 11 | 2 4 1 3 4 . . . . . . . . 3 . . . . . 1 . 1 1 5 10 3 5 . 3 . . 11 2 4 Penetration Max 1 | . . . . . . . . . . . . . . . . . . . . . . . . 1 . 1 . 1 . . 1 . 1 Secondary Targets 4 | . 1 1 2 . . . . . . . . . . . . . . . . . . . . . . . . . . . . . . Max Gunslinging Chain 1 | . 1 1 1 . . . . . . . . . . . . . . . . . . . . . . . . . . . . . . Shots Hit Robots 662 | 10 71 37 146 23 . 5 . . . . 31 . . . 1 11 19 1 1 . 1 3 6 48 16 44 2 52 20 1 55 3 55 Core Hits 373 | 6 28 15 70 10 . . . . . 2 5 . 4 . . 3 9 . 5 . . . 16 23 9 22 1 29 8 2 27 13 66 Critical Kills 29 | . . 1 . 1 . . . . . . 1 . . . . . . . . . . . 1 7 2 6 . 5 . . 4 . 1 Critical Parts Destroyed 38 | . 1 . . 1 . 2 . . . . 3 . . . . . . . . . 1 1 . 5 2 4 . 10 . . 6 . 2 Critical Strikes 78 | . 1 1 2 2 . 2 . . . . 5 . . . . . . . . . 1 1 1 13 4 11 . 16 . . 10 . 8 Burn 2 | . . . 2 . . . . . . . . . . . . . . . . . . . . . . . . . . . . . . Destroy 63 | . 1 1 . 1 . . . . . . 1 . . . . . . . . . 1 1 1 13 4 11 . 15 . . 10 . 3 Blast 3 | . . . . . . . . . . . . . . . . . . . . . . . . . . . . . . . . . 3 Smash 6 | . . . . 1 . 2 . . . . 3 . . . . . . . . . . . . . . . . . . . . . . Sever 4 | . . . . . . . . . . . 1 . . . . . . . . . . . . . . . . 1 . . . . 2 Melee Attacks 442 | . . . 1 22 . 22 2 2 . . 81 1 1 . . 71 19 16 . 2 18 . 24 2 . . . 29 47 5 34 10 33 Impact 118 | . . . . 22 . 22 2 2 . . 70 . . . . . . . . . . . . . . . . . . . . . . Slashing 316 | . . . . . . . . . . . 11 1 1 . . 71 19 16 . 2 18 . 19 . . . . 29 47 5 34 10 33 Piercing 8 | . . . 1 . . . . . . . . . . . . . . . . . . . 5 2 . . . . . . . . . Sneak Attacks 50 | . . . . 1 . 1 . . . . 8 . . . . 6 14 1 . . . . 2 1 . . . 1 10 . . . 5 Combat Hostiles . | . . . . . . . . . . . . . . . . . . . . . . . . . . . . . . . . . . Follow-up Attacks . | . . . . . . . . . . . . . . . . . . . . . . . . . . . . . . . . . . Damage Inflicted 27020 | 131 892 651 3107 492 . 319 . . . 78 1830 . 88 . 16 773 1604 95 93 . 29 58 518 1718 539 1209 54 1885 1443 60 1702 726 6910 Guns 11804 | 131 887 320 2496 394 . . . . . . 48 . . . 16 18 . . . . 29 58 113 1623 539 1205 54 1410 . 60 1702 . 701 Cannons 821 | . . . . . . . . . . . . . . . . . . . . . . . . . . . . . . . . . 821 Explosions 6157 | . . 331 568 . . . . . . 78 . . 88 . . . . . 93 . . . 255 . . . . . . . . 651 4093 Melee 8174 | . . . 2 98 . 319 . . . . 1782 . . . . 755 1604 95 . . . . 150 95 . . . 475 1443 . . 75 1281 Ramming 64 | . 5 . 41 . . . . . . . . . . . . . . . . . . . . . . 4 . . . . . . 14 Kinetic 9822 | 54 887 320 436 394 . . . . . . 48 . . . 16 18 . . . . 29 58 113 1623 539 1093 54 1410 . 60 1702 . 968 Thermal 2803 | 77 . . 2060 . . . . . . . . . . . . . . . . . . . . . . 112 . . . . . . 554 Explosive 5945 | . . 331 568 . . . . . . 78 . . 88 . . . . . 93 . . . 255 . . . . . . . . 651 3881 Electromagnetic 212 | . . . . . . . . . . . . . . . . . . . . . . . . . . . . . . . . . 212 Impact 1776 | . . . . 98 . 319 . . . . 1359 . . . . . . . . . . . . . . . . . . . . . . Slashing 6301 | . . . . . . . . . . . 423 . . . . 755 1604 95 . . . . 150 . . . . 475 1443 . . 75 1281 Piercing 97 | . . . 2 . . . . . . . . . . . . . . . . . . . . 95 . . . . . . . . . Highest Corruption 45 | . 2 2 . . . 2 2 2 2 . 4 4 4 4 4 . . . . . . . . . 1 8 . . 3 3 . 1 45 Average Corruption 3 | . 2 2 . . . 1 2 2 2 . 2 4 4 4 4 . . . . . . . . . 1 2 . . 2 3 . 1 11 Corruption Purged 8 | . . . . . . . . . . . . . . . . . . . . . . . . . . 8 . . . . . . . Corruption Blocked 2 | . . . . . . . . . . . . . . . . . . . . . . . . . . . . . . . 2 . . Effects 110 | . 13 3 . . . 7 4 4 . . 5 1 5 1 10 . . . . . . . . . 1 5 . . 2 1 . . 48 Message Errors 22 | . 4 3 . . . 1 . 2 . . 1 . . . 1 . . . . . . . . . 1 . . . 1 . . . 8 Matter Fused 20 | . 3 . . . . 2 1 . . . 1 . . 1 4 . . . . . . . . . . 2 . . . . . . 6 Heat Flow Errors 12 | . 2 . . . . . 1 1 . . . . 2 . . . . . . . . . . . . 1 . . . . . . 5 Energy Discharges 14 | . 1 . . . . 1 2 . . . . . . . 1 . . . . . . . . . . . . . . . . . 9 Parts Rejected 1 | . . . . . . . . . . . . . . . . . . . . . . . . . . . . . . . . . 1 Parts Fused 2 | . . . . . . . . . . . . . 1 . . . . . . . . . . . . . . . . . . . 1 Data Loss (minor) 18 | . 1 . . . . 2 . 1 . . 2 1 2 . 2 . . . . . . . . . . . . . 1 1 . . 5 Data Loss (major) 4 | . 1 . . . . . . . . . . . . . 1 . . . . . . . . . . . . . . . . . 2 Misfires 6 | . 1 . . . . 1 . . . . . . . . 1 . . . . . . . . . . 1 . . . . . . 2 Alerts 3 | . . . . . . . . . . . 1 . . . . . . . . . . . . . . . . . . . . . 2 Misdirections 3 | . . . . . . . . . . . . . . . . . . . . . . . . . . . . . . . . . 3 Weapon Failures 5 | . . . . . . . . . . . . . . . . . . . . . . . . . . 1 . . . . . . 4 Overload Shots . | . . . . . . . . . . . . . . . . . . . . . . . . . . . . . . . . . . Overflow Damage 2887 | . . . 12 98 . 214 . . . . 788 . . . . 350 192 55 . . . . 31 65 . . . 64 445 . . 14 559 Projectiles . | . . . . . . . . . . . . . . . . . . . . . . . . . . . . . . . . . . Explosions 175 | . . . . . . . . . . . . . . . . . . . . . . . . . . . . . . . . 14 161 Melee 2712 | . . . 12 98 . 214 . . . . 788 . . . . 350 192 55 . . . . 31 65 . . . 64 445 . . . 398 Knockbacks 10 | . . . . . . 3 . . . . 5 . . . . . . . . . . . . . . . . . . . . . 2 Impact 9 | . . . . . . 3 . . . . 5 . . . . . . . . . . . . . . . . . . . . . 1 Kinetic 1 | . . . . . . . . . . . . . . . . . . . . . . . . . . . . . . . . . 1 Secondary . | . . . . . . . . . . . . . . . . . . . . . . . . . . . . . . . . . . Self-Inflicted Damage 481 | . . 15 . . . . . . . . . . 48 . . . . . 23 . . . . . . . . . . . . . 395 Shots 9 | . . 1 . . . . . . . . . . 2 . . . . . 1 . . . . . . . . . . . . . 5 Rammed 7 | . . . 3 . . . . . . . . . . . . . . . . . . . . . . 1 . . . . . . 3 Targets Rammed 8 | . 1 . 3 . . . . . . . . . . . . . . . . . . . . . . 1 . . . . . . 3 Kicked 1 | . 1 . . . . . . . . . . . . . . . . . . . . . . . . . . . . . . . . Crushed . | . . . . . . . . . . . . . . . . . . . . . . . . . . . . . . . . . . Highest Temperature 384 | . 166 13 51 85 2 13 104 211 4 4 64 28 245 15 29 207 249 48 207 205 384 203 348 176 9 216 . 200 41 8 181 150 178 Average Temperature 45 | . 33 8 14 9 2 2 6 59 2 2 14 14 62 8 9 37 76 17 61 94 120 54 88 38 5 50 . 25 28 4 69 60 88 Received Heat Transfer 1910 | . 291 132 1008 . . . 6 9 . . 18 . . . . 27 . . 18 . . . . 68 . . . 24 12 . 18 27 252 Effects 2 | . . . . . . . . . . . . . . . . . . . . . 2 . . . . . . . . . . . . Shutdowns 1 | . . . . . . . . . . . . . . . . . . . . . 1 . . . . . . . . . . . . Interference 1 | . . . . . . . . . . . . . . . . . . . . . 1 . . . . . . . . . . . . Siege Activations 1 | . . . . . . . . . . . . . . . . . . . . . . . . . . . . . . . . . 1 Total Turns 8 | . . . . . . . . . . . . . . . . . . . . . . . . . . . . . . . . . 8 Longest Duration 8 | . . . . . . . . . . . . . . . . . . . . . . . . . . . . . . . . . 8 Robots Corrupted . | . . . . . . . . . . . . . . . . . . . . . . . . . . . . . . . . . . Combat Hostiles . | . . . . . . . . . . . . . . . . . . . . . . . . . . . . . . . . . . Parts Fried 27 | . . . . 1 . 3 . . . . 22 . . . . . . . . . . . . . . . . . . . 1 . . Impact Corruptions 37 | . . . 1 2 . 11 . . . . 23 . . . . . . . . . . . . . . . . . . . . . . Robots Melted . | . . . . . . . . . . . . . . . . . . . . . . . . . . . . . . . . . . Combat Hostiles . | . . . . . . . . . . . . . . . . . . . . . . . . . . . . . . . . . . Parts Melted 12 | . . . 8 . . . . . . . . . . . . . . . . . . . . . . . . 3 . . . . 1 Heat Transferred 4948 | 175 . . 4107 . . . . . . . . . . . . . . . . . . . . . . 148 . . . . . . 518 Parts Sabotaged . | . . . . . . . . . . . . . . . . . . . . . . . . . . . . . . . . . . Parts Stolen . | . . . . . . . . . . . . . . . . . . . . . . . . . . . . . . . . . . Parts Stripped . | . . . . . . . . . . . . . . . . . . . . . . . . . . . . . . . . . . Power Chain Reactions . | . . . . . . . . . . . . . . . . . . . . . . . . . . . . . . . . . . Alert | -11 -10 -10 -8 -7 -7 -7 -7 -7 -7 -6 -6 -6 -6 -6 -5 -5 -5 -5 -5 -5 -5 -4 -4 -4 -4 -4 -4 -3 -3 -3 -2 -2 -1 ------- Run | Yrd Mat Sub Mat Fac Was Fac Low Low Zio Pro Fac Low Low Dat Pro Fac Was Fac Upp Upp War Pro Fac Ext Cet Arc Hub Res Qua Sec Res Tes Acc Peak Influence 1867 | 25 160 . 445 265 98 181 . . . . 144 . . . . 253 87 202 . . . . 563 333 309 402 205 255 323 260 824 1014 1867 Initial 608 | . 16 . . 153 28 68 . . . . 6 . . . . . 87 60 . . . . 14 256 16 43 . 75 77 176 146 344 608 Average 254 | 11 43 . 251 150 76 99 . . . . 56 . . . . 92 87 108 . . . . 184 178 137 176 79 120 147 232 564 517 1051 Maximum Alert Level 5 | . . . 2 1 . . . . . . . . . . . 1 . 1 . . . . 2 1 1 2 1 1 1 1 3 3 5 Low Security (%) 58 | 100 100 . 25 78 100 100 . . . . 100 . . . . 83 100 99 . . . . 64 66 83 42 92 94 79 20 4 . . Level 1 25 | . . . 71 21 . . . . . . . . . . . 16 . . . . . . 7 33 16 56 7 5 20 79 15 29 . Level 2 8 | . . . 2 . . . . . . . . . . . . . . . . . . . 28 . . . . . . . 56 50 31 Level 3 3 | . . . . . . . . . . . . . . . . . . . . . . . . . . . . . . . 23 20 14 Level 4 3 | . . . . . . . . . . . . . . . . . . . . . . . . . . . . . . . . . 42 Level 5 . | . . . . . . . . . . . . . . . . . . . . . . . . . . . . . . . . . 10 High Security . | . . . . . . . . . . . . . . . . . . . . . . . . . . . . . . . . . . Max Security . | . . . . . . . . . . . . . . . . . . . . . . . . . . . . . . . . . . Squads Dispatched 58 | . 6 . 3 . . 4 . . . . 6 . . . . 4 . 2 . . . . 2 3 . . . 7 4 1 1 5 10 Investigation 18 | . 3 . 1 . . 2 . . . . 1 . . . . . . 1 . . . . 1 2 . . . 1 1 . 1 4 . Extermination 9 | . . . . . . 1 . . . . 2 . . . . 1 . 1 . . . . . . . . . . 1 . . . 3 Reinforcement 27 | . 3 . 2 . . 1 . . . . 3 . . . . 3 . . . . . . 1 1 . . . 6 2 1 . 1 3 Assault 1 | . . . . . . . . . . . . . . . . . . . . . . . . . . . . . . . . . 1 Garrison 3 | . . . . . . . . . . . . . . . . . . . . . . . . . . . . . . . . . 3 Intercept . | . . . . . . . . . . . . . . . . . . . . . . . . . . . . . . . . . . Searches Triggered 4 | . . . . . . . . . . . . . . . . . . . . . . . . . . . . . . . . . 4 Construction Impeded . | . . . . . . . . . . . . . . . . . . . . . . . . . . . . . . . . . . Haulers Reinforced 5 | . . . . . . . . . . . 2 . . . . . . . . . . . . . . . . 2 . . . . 1 Active Scanning Responses . | . . . . . . . . . . . . . . . . . . . . . . . . . . . . . . . . . . Cargo Convoy Interrupts . | . . . . . . . . . . . . . . . . . . . . . . . . . . . . . . . . . . Stealth | -11 -10 -10 -8 -7 -7 -7 -7 -7 -7 -6 -6 -6 -6 -6 -5 -5 -5 -5 -5 -5 -5 -4 -4 -4 -4 -4 -4 -3 -3 -3 -2 -2 -1 --------- Run | Yrd Mat Sub Mat Fac Was Fac Low Low Zio Pro Fac Low Low Dat Pro Fac Was Fac Upp Upp War Pro Fac Ext Cet Arc Hub Res Qua Sec Res Tes Acc Distress Signals 47 | . 1 . . . . . . . . . 1 . . . . 2 . 1 . . . . 1 2 2 . 1 11 1 1 16 4 3 Communications Jammed . | . . . . . . . . . . . . . . . . . . . . . . . . . . . . . . . . . . Distress Signals . | . . . . . . . . . . . . . . . . . . . . . . . . . . . . . . . . . . Times Spotted 552 | . 23 6 60 2 . 10 5 7 . 1 14 . 3 . . 23 . 5 2 1 25 1 29 28 10 29 5 27 27 7 51 30 121 Peak Tracking Total 21 | . 4 2 5 2 . 2 2 6 . 3 3 . 3 . . 9 . 5 2 1 12 1 12 7 5 1 3 4 13 6 9 21 18 Tactical Retreats 64 | . . . 1 . . 1 3 3 . . 4 . . . . 4 . 1 1 1 . . 5 3 . . . 1 4 . 6 3 23 Traps | -11 -10 -10 -8 -7 -7 -7 -7 -7 -7 -6 -6 -6 -6 -6 -5 -5 -5 -5 -5 -5 -5 -4 -4 -4 -4 -4 -4 -3 -3 -3 -2 -2 -1 ------- Run | Yrd Mat Sub Mat Fac Was Fac Low Low Zio Pro Fac Low Low Dat Pro Fac Was Fac Upp Upp War Pro Fac Ext Cet Arc Hub Res Qua Sec Res Tes Acc Traps Triggered 20 | . 3 . 1 1 . . . . . . . . . . . 1 . . . . . . . 5 . . . 5 2 . . . 2 Indirectly . | . . . . . . . . . . . . . . . . . . . . . . . . . . . . . . . . . . Trap Hack Attempts . | . . . . . . . . . . . . . . . . . . . . . . . . . . . . . . . . . . Triggered . | . . . . . . . . . . . . . . . . . . . . . . . . . . . . . . . . . . Disarmed . | . . . . . . . . . . . . . . . . . . . . . . . . . . . . . . . . . . Reprogrammed . | . . . . . . . . . . . . . . . . . . . . . . . . . . . . . . . . . . Reused . | . . . . . . . . . . . . . . . . . . . . . . . . . . . . . . . . . . Traps Extracted . | . . . . . . . . . . . . . . . . . . . . . . . . . . . . . . . . . . Installed . | . . . . . . . . . . . . . . . . . . . . . . . . . . . . . . . . . . Triggered 10 | . . . . . . . 3 . . . 1 . . . 1 . . . . . 5 . . . . . . . . . . . . Machines | -11 -10 -10 -8 -7 -7 -7 -7 -7 -7 -6 -6 -6 -6 -6 -5 -5 -5 -5 -5 -5 -5 -4 -4 -4 -4 -4 -4 -3 -3 -3 -2 -2 -1 ---------- Run | Yrd Mat Sub Mat Fac Was Fac Low Low Zio Pro Fac Low Low Dat Pro Fac Was Fac Upp Upp War Pro Fac Ext Cet Arc Hub Res Qua Sec Res Tes Acc Machines Disabled 38 | . . . . . . . . . . . . . . . . 3 . . . . . . 1 6 . 5 1 1 3 3 2 4 9 Max in Single Turn 2 | . . . . . . . . . . . . . . . . 1 . . . . . . 1 1 . 1 . 1 1 1 1 1 2 Garrison Access 8 | . . . . . . . . . . . 1 . . . . 1 . . . . . . . . . . . 1 1 . 2 1 1 Machines Repaired . | . . . . . . . . . . . . . . . . . . . . . . . . . . . . . . . . . . Machines Dismantled . | . . . . . . . . . . . . . . . . . . . . . . . . . . . . . . . . . . Machines Sabotaged . | . . . . . . . . . . . . . . . . . . . . . . . . . . . . . . . . . . Overloaded Fab Kills . | . . . . . . . . . . . . . . . . . . . . . . . . . . . . . . . . . . Hacking | -11 -10 -10 -8 -7 -7 -7 -7 -7 -7 -6 -6 -6 -6 -6 -5 -5 -5 -5 -5 -5 -5 -4 -4 -4 -4 -4 -4 -3 -3 -3 -2 -2 -1 --------- Run | Yrd Mat Sub Mat Fac Was Fac Low Low Zio Pro Fac Low Low Dat Pro Fac Was Fac Upp Upp War Pro Fac Ext Cet Arc Hub Res Qua Sec Res Tes Acc Machines Accessed 143 | . 5 . 9 3 . 9 . 1 . 1 21 . 2 4 . 16 . 4 . . 6 . 5 7 1 . 1 8 16 . 5 9 10 Terminals 96 | . 5 . 7 2 . 7 . . . 1 13 . . . . 13 . 3 . . . . 5 7 1 . 1 4 13 . 2 6 6 Fabricators 1 | . . . . . . . . . . . 1 . . . . . . . . . . . . . . . . . . . . . . Repair Stations 6 | . . . 1 . . . . . . . 1 . . . . 2 . 1 . . . . . . . . . 1 . . . . . Recycling Units 4 | . . . 1 . . . . . . . 1 . . . . . . . . . . . . . . . . 1 . . . . 1 Scanalyzers 6 | . . . . . . 1 . . . . 1 . . . . . . . . . . . . . . . . . 2 . . 2 . Garrison Access 17 | . . . . 1 . 1 . . . . 4 . . . . 1 . . . . . . . . . . . 2 1 . 3 1 3 Total Hacks 361 | . 14 . 25 4 . 22 . 1 . 1 56 . 3 29 . 32 . 17 . . 21 . 16 18 1 . 3 17 30 . 10 18 23 Successful 173 | . 5 . 9 . . 8 . 1 . 1 22 . 3 29 . 11 . 9 . . 21 . 4 12 1 . 1 7 14 . 5 6 4 Failed 187 | . 9 . 15 4 . 14 . . . . 34 . . . . 21 . 8 . . . . 12 6 . . 2 10 16 . 5 12 19 Catastrophic 49 | . 2 . 2 3 . 3 . . . . 8 . . . . 10 . 4 . . . . . 2 . . . 1 4 . 2 3 5 Database Lockouts 1 | . . . 1 . . . . . . . . . . . . . . . . . . . . . . . . . . . . . . Manual 134 | . 7 . 20 1 . 8 . . . . 22 . . . . 21 . 8 . . 1 . 5 10 1 . 3 2 11 . 3 3 8 Terminals 231 | . 14 . 22 3 . 17 . . . 1 30 . . . . 29 . 13 . . . . 16 18 1 . 3 7 24 . 4 12 17 Fabricators 4 | . . . . . . . . . . . 4 . . . . . . . . . . . . . . . . . . . . . . Repair Stations 17 | . . . 2 . . . . . . . 6 . . . . 2 . 4 . . . . . . . . . 3 . . . . . Recycling Units 5 | . . . 1 . . . . . . . 1 . . . . . . . . . . . . . . . . 2 . . . . 1 Scanalyzers 17 | . . . . . . 4 . . . . 4 . . . . . . . . . . . . . . . . . 5 . . 4 . Garrison Access 33 | . . . . 1 . 1 . . . . 11 . . . . 1 . . . . . . . . . . . 5 1 . 6 2 5 Terminal Hacks 117 | . 5 . 6 . . 3 . 1 . 1 6 . 3 29 . 5 . 6 . . 21 . 3 10 1 . 1 3 5 . 3 3 2 Record 28 | . . . . . . . . . . 1 . . 2 11 . . . . . . 10 . . . . . . . 2 . 2 . . Part Schematic 11 | . . . . . . . . . . . 2 . . 9 . . . . . . . . . . . . . . . . . . . Robot Schematic 6 | . . . . . . . . . . . . . . 6 . . . . . . . . . . . . . . . . . . . Robot Analysis 3 | . 2 . 1 . . . . . . . . . . . . . . . . . . . . . . . . . . . . . . Prototype ID Bank 17 | . 1 . . . . . . . . . . . . 3 . . . . . . 10 . . 1 . . . . . . . 2 . Open Door 5 | . . . . . . . . 1 . . . . 1 . . . . . . . 1 . . . 1 . . . 1 . . . . Open DSF 1 | . . . . . . . . . . . . . . . . 1 . . . . . . . . . . . . . . . . . Branch Access Points 6 | . . . 1 . . 1 . . . . 1 . . . . . . 1 . . . . 1 . . . . . . . 1 . . Terminal Index 3 | . . . . . . . . . . . . . . . . 1 . 1 . . . . . . . . . 1 . . . . . Garrison Index 1 | . . . . . . . . . . . . . . . . 1 . . . . . . . . . . . . . . . . . Alert Level 1 | . . . . . . . . . . . . . . . . . . . . . . . . 1 . . . . . . . . . Unreport Threat 6 | . . . 1 . . . . . . . . . . . . 1 . . . . . . 1 3 . . . . . . . . . Locate Traps 6 | . 1 . . . . 1 . . . . 1 . . . . . . . . . . . . 2 . . . . 1 . . . . Dispatch Records 2 | . . . . . . . . . . . 1 . . . . . . . . . . . . . . . . 1 . . . . . Maintenance Status 1 | . . . . . . . . . . . . . . . . . . . . . . . 1 . . . . . . . . . . Transport Status 1 | . . . 1 . . . . . . . . . . . . . . . . . . . . . . . . . . . . . . Recall Investigation 1 | . . . . . . . . . . . . . . . . . . . . . . . . . . . . . . . . 1 . Recall Reinforcements 1 | . . . . . . . . . . . . . . . . . . . . . . . . . . . . . 1 . . . . Hauler Manifests 10 | . 1 . 2 . . 1 . . . . 1 . . . . 1 . 1 . . . . . 1 . . . 1 . . . . 1 Registered Components 2 | . . . . . . . . . . . . . . . . . . 1 . . . . . 1 . . . . . . . . . Zone Layout 5 | . . . . . . . . . . . . . . . . . . 2 . . . . . 1 . . 1 . . . . . 1 Fabricator Hacks 1 | . . . . . . . . . . . 1 . . . . . . . . . . . . . . . . . . . . . . Network Status 1 | . . . . . . . . . . . 1 . . . . . . . . . . . . . . . . . . . . . . Repair Station Hacks 13 | . . . 2 . . . . . . . 6 . . . . 1 . 2 . . . . . . . . . 2 . . . . . Scan Component 7 | . . . 1 . . . . . . . 3 . . . . 1 . 1 . . . . . . . . . 1 . . . . . Repair 6 | . . . 1 . . . . . . . 3 . . . . . . 1 . . . . . . . . . 1 . . . . . Recycling Unit Hacks 2 | . . . . . . . . . . . 1 . . . . . . . . . . . . . . . . . . . . . 1 Retrieve Components 2 | . . . . . . . . . . . 1 . . . . . . . . . . . . . . . . . . . . . 1 Scanalyzer 12 | . . . . . . 4 . . . . 1 . . . . . . . . . . . . . . . . . 5 . . 2 . Insert Component 10 | . . . . . . 2 . . . . 1 . . . . . . . . . . . . . . . . . 5 . . 2 . Analyze 2 | . . . . . . 2 . . . . . . . . . . . . . . . . . . . . . . . . . . . Garrison Access Hacks 7 | . . . . . . . . . . . 1 . . . . 1 . . . . . . . . . . . 1 1 . 1 1 1 Seal Access 7 | . . . . . . . . . . . 1 . . . . 1 . . . . . . . . . . . 1 1 . 1 1 1 Unauthorized Hacks 21 | . . . 1 . . 1 . . . . 6 . . . . 4 . 1 . . . . 1 2 . . . 1 3 . 1 . . Terminals 18 | . . . . . . 1 . . . . 5 . . . . 4 . 1 . . . . 1 2 . . . 1 3 . . . . Assimilate 10 | . . . . . . 1 . . . . 3 . . . . 2 . . . . . . . 1 . . . . 3 . . . . Botnet 6 | . . . . . . . . . . . 2 . . . . 1 . 1 . . . . 1 . . . . 1 . . . . . Disrupt 1 | . . . . . . . . . . . . . . . . . . . . . . . . 1 . . . . . . . . . Operators 1 | . . . . . . . . . . . . . . . . 1 . . . . . . . . . . . . . . . . . Fabricators 1 | . . . . . . . . . . . 1 . . . . . . . . . . . . . . . . . . . . . . Haulers 1 | . . . . . . . . . . . 1 . . . . . . . . . . . . . . . . . . . . . . Repair Stations . | . . . . . . . . . . . . . . . . . . . . . . . . . . . . . . . . . . Recycling Units 1 | . . . 1 . . . . . . . . . . . . . . . . . . . . . . . . . . . . . . Tunnel 1 | . . . 1 . . . . . . . . . . . . . . . . . . . . . . . . . . . . . . Scanalyzers . | . . . . . . . . . . . . . . . . . . . . . . . . . . . . . . . . . . Garrison Access 1 | . . . . . . . . . . . . . . . . . . . . . . . . . . . . . . . 1 . . Jam 1 | . . . . . . . . . . . . . . . . . . . . . . . . . . . . . . . 1 . . Data Cores Recovered 5 | . . . . . . 1 . . . . 2 . . . . . . . . . . . . . . . 1 . . . . 1 . Used 3 | . . . . . . . . . . . 1 . . . . . . . . . . . . . . . 1 . . . . 1 . Hacking Detections 117 | . 5 . 8 3 . 9 . . . . 18 . . . . 13 . 4 . . . . 5 7 1 . 1 8 14 . 5 8 8 Full Trace Events 12 | . 1 . . . . 2 . . . . 1 . . . . . . 1 . . . . 1 2 . . . . 1 . . 3 . Feedback Events 2 | . . . . . . 1 . . . . . . . . . . . . . . . . . . . . . . . . . 1 . Corruption 2 | . . . . . . 1 . . . . . . . . . . . . . . . . . . . . . . . . . 1 . Feedback Blocked . | . . . . . . . . . . . . . . . . . . . . . . . . . . . . . . . . . . Robot Schematics Acquired 7 | . . . . . . . . . . . . . . 6 . . . . . . . . . . . . . . . 1 . . . Robots Built . | . . . . . . . . . . . . . . . . . . . . . . . . . . . . . . . . . . Authchips . | . . . . . . . . . . . . . . . . . . . . . . . . . . . . . . . . . . Time . | . . . . . . . . . . . . . . . . . . . . . . . . . . . . . . . . . . Total Robot Build Rating . | . . . . . . . . . . . . . . . . . . . . . . . . . . . . . . . . . . Part Schematics Acquired 14 | . . . . . . 2 . . . . 2 . . 9 . . . . . . . . . . . . . . . 1 . . . Parts Built . | . . . . . . . . . . . . . . . . . . . . . . . . . . . . . . . . . . Authchips . | . . . . . . . . . . . . . . . . . . . . . . . . . . . . . . . . . . Time . | . . . . . . . . . . . . . . . . . . . . . . . . . . . . . . . . . . Total Part Build Rating . | . . . . . . . . . . . . . . . . . . . . . . . . . . . . . . . . . . Parts Repaired 6 | . . . 1 . . . . . . . 3 . . . . . . 1 . . . . . . . . . 1 . . . . . Time 241 | . . . 26 . . . . . . . 142 . . . . . . 19 . . . . . . . . . 54 . . . . . Parts Recycled . | . . . . . . . . . . . . . . . . . . . . . . . . . . . . . . . . . . Recycled Matter . | . . . . . . . . . . . . . . . . . . . . . . . . . . . . . . . . . . Retrieved Matter . | . . . . . . . . . . . . . . . . . . . . . . . . . . . . . . . . . . Retrieved Components 10 | . . . . . . . . . . . 1 . . . . . . . . . . . . . . . . . . . . . 9 Parts Scanalyzed 3 | . . . . . . 2 . . . . 1 . . . . . . . . . . . . . . . . . . . . . . Part Schematics Acquired 2 | . . . . . . 2 . . . . . . . . . . . . . . . . . . . . . . . . . . . Parts Damaged 1 | . . . . . . . . . . . 1 . . . . . . . . . . . . . . . . . . . . . . Bothacking | -11 -10 -10 -8 -7 -7 -7 -7 -7 -7 -6 -6 -6 -6 -6 -5 -5 -5 -5 -5 -5 -5 -4 -4 -4 -4 -4 -4 -3 -3 -3 -2 -2 -1 ------------ Run | Yrd Mat Sub Mat Fac Was Fac Low Low Zio Pro Fac Low Low Dat Pro Fac Was Fac Upp Upp War Pro Fac Ext Cet Arc Hub Res Qua Sec Res Tes Acc Used RIF Installer . | . . . . . . . . . . . . . . . . . . . . . . . . . . . . . . . . . . Robots Hacked . | . . . . . . . . . . . . . . . . . . . . . . . . . . . . . . . . . . Non-combat . | . . . . . . . . . . . . . . . . . . . . . . . . . . . . . . . . . . Combat . | . . . . . . . . . . . . . . . . . . . . . . . . . . . . . . . . . . Robot Hacks Applied . | . . . . . . . . . . . . . . . . . . . . . . . . . . . . . . . . . . Relay Couplers Released . | . . . . . . . . . . . . . . . . . . . . . . . . . . . . . . . . . . Fabnet Peak Effective % . | . . . . . . . . . . . . . . . . . . . . . . . . . . . . . . . . . . Robots Rewired 17 | . . . . . . . . . . . . . . . . . . . . . 5 . . 12 . . . . . . . . . Allies Hacked . | . . . . . . . . . . . . . . . . . . . . . . . . . . . . . . . . . . Hacks Repelled . | . . . . . . . . . . . . . . . . . . . . . . . . . . . . . . . . . . Allies | -11 -10 -10 -8 -7 -7 -7 -7 -7 -7 -6 -6 -6 -6 -6 -5 -5 -5 -5 -5 -5 -5 -4 -4 -4 -4 -4 -4 -3 -3 -3 -2 -2 -1 -------- Run | Yrd Mat Sub Mat Fac Was Fac Low Low Zio Pro Fac Low Low Dat Pro Fac Was Fac Upp Upp War Pro Fac Ext Cet Arc Hub Res Qua Sec Res Tes Acc Total Allies 79 | . . . . . 20 1 . . 3 . 1 . . . . 2 20 . . . 5 . . 21 5 . . . 1 . . . . Largest Group 20 | . . . . . 20 1 . . 3 3 1 . . . . 1 20 . . . 5 3 . 8 8 7 5 . 1 . . . . Highest-Rated Group 720 | . . . . . 508 10 . . 73 73 10 . . . . 26 720 . . . 236 147 . 412 690 594 425 . 45 . . . . Highest-Rated Ally 159 | . . . . . 31 10 . . 31 31 10 . . . . 26 50 . . . 65 65 . 159 159 159 96 . 45 . . . . Total Orders 7 | . . . . . . . . . . . . . . . . . . . . . 5 . . . . 2 . . . . . . . STAY 5 | . . . . . . . . . . . . . . . . . . . . . 4 . . . . 1 . . . . . . . FOLLOW 2 | . . . . . . . . . . . . . . . . . . . . . 1 . . . . 1 . . . . . . . Ally Attacks 262 | . . . . . 49 . . . . 1 . . . . . . . . . . 17 7 . 62 61 32 33 . . . . . . Total Damage 7515 | . . . . . 666 . . . . . . . . . . . . . . . 983 216 . 1927 1496 1123 1104 . . . . . . Kills 35 | . . . . . 4 . . . . . . . . . . . . . . . 6 1 . 11 6 3 4 . . . . . . Allies Corrupted 1 | . . . . . . . . . . . . . . . . . . . . . . . . . . . . . 1 . . . . Allies Melted . | . . . . . . . . . . . . . . . . . . . . . . . . . . . . . . . . . . Intel | -11 -10 -10 -8 -7 -7 -7 -7 -7 -7 -6 -6 -6 -6 -6 -5 -5 -5 -5 -5 -5 -5 -4 -4 -4 -4 -4 -4 -3 -3 -3 -2 -2 -1 ------- Run | Yrd Mat Sub Mat Fac Was Fac Low Low Zio Pro Fac Low Low Dat Pro Fac Was Fac Upp Upp War Pro Fac Ext Cet Arc Hub Res Qua Sec Res Tes Acc Robot Analysis Total 3 | . 2 . 1 . . . . . . . . . . . . . . . . . . . . . . . . . . . . . . Derelict Logs Recovered 10 | . . . . . . . 2 3 . 1 . . 1 . 1 . . . 1 . . 1 . . . . . . . . . . . Drone Launches . | . . . . . . . . . . . . . . . . . . . . . . . . . . . . . . . . . . Drone Recoveries . | . . . . . . . . . . . . . . . . . . . . . . . . . . . . . . . . . . Exploration | -11 -10 -10 -8 -7 -7 -7 -7 -7 -7 -6 -6 -6 -6 -6 -5 -5 -5 -5 -5 -5 -5 -4 -4 -4 -4 -4 -4 -3 -3 -3 -2 -2 -1 ------------- Run | Yrd Mat Sub Mat Fac Was Fac Low Low Zio Pro Fac Low Low Dat Pro Fac Was Fac Upp Upp War Pro Fac Ext Cet Arc Hub Res Qua Sec Res Tes Acc Turns Passed 23632 | 78 1995 511 3826 576 211 492 504 259 364 269 1633 80 231 24 317 1266 320 250 297 174 612 322 397 1081 441 1331 238 1165 854 67 1528 372 1547 Spaces Moved 36447 | 19 1048 293 1773 1145 527 1282 722 843 942 473 2852 320 583 94 420 2179 664 428 478 494 1142 548 1023 1335 249 343 142 2821 2084 120 4322 1034 3705 Core 121 | . . . . . . . . . . . . . . . . . . . . . . . . . . . . . . . . . 121 Treads 1794 | . . . 833 . . . . . . . . . . . . . . . . . . . . . 221 343 142 118 . . . . 137 Legs 2062 | 19 1048 111 884 . . . . . . . . . . . . . . . . . . . . . . . . . . . . . . Wheels 224 | . . 182 42 . . . . . . . . . . . . . . . . . . . . . . . . . . . . . . Hover 2 | . . . . . . . . . . . . . . . . . . . . . . . . 2 . . . . . . . . . Flight 32244 | . . . 14 1145 527 1282 722 843 942 473 2852 320 583 94 420 2179 664 428 478 494 1142 548 1023 1333 28 . . 2703 2084 120 4322 1034 3447 Fastest Speed 6 | 120 120 120 96 20 23 23 17 17 23 23 17 23 23 23 23 20 17 17 14 17 15 16 8 15 17 160 160 18 6 18 12 10 10 Average Speed 34 | 120 155 146 177 23 23 23 22 22 23 23 22 23 23 23 23 20 18 17 16 18 21 18 16 21 143 160 160 24 17 18 12 10 19 Slowest Speed 306 | 120 190 190 306 26 23 23 23 23 23 23 23 23 23 23 23 20 20 17 17 20 92 20 18 180 160 160 160 160 18 18 84 12 170 Overloaded Moves 103 | . . . . . . . . . . . . . . . . . . . 12 . . . 61 . . . . . 30 . . . . Propulsion Burnouts . | . . . . . . . . . . . . . . . . . . . . . . . . . . . . . . . . . . Robots Hopped 103 | . . . . 3 1 5 . 3 . . 1 . 1 . . 3 . 1 . . 5 2 3 20 . . . 5 6 1 14 7 22 Cave-ins Triggered . | . . . . . . . . . . . . . . . . . . . . . . . . . . . . . . . . . . Exploration Rate (%) 64 | 2 97 19 80 18 95 43 56 89 84 69 75 63 85 74 58 63 95 15 75 61 92 74 34 86 81 97 17 88 93 11 67 77 75 Regions Visited 33 Branch Regions 20 Pre-discovered Areas 7 | . . . 1 . . . 1 . 3 . . . . 1 . . . . . . 1 . . . . . . . . . . . . Known Exits Taken 25 | . . . . . . 1 1 1 1 1 1 1 1 1 1 . . 1 1 1 1 1 1 1 1 1 1 1 1 1 1 1 . Unknown Exits Taken 4 | 1 1 1 1 . . . . . . . . . . . . . . . . . . . . . . . . . . . . . . Scrap Searched 24 | . . . . . . . 4 1 3 3 . 3 3 . 3 . . . 1 . . 3 . . . . . . . . . . . Spaces Dug 397 | . . . . 20 . 9 2 1 . 15 52 1 1 . . 55 . 14 28 2 35 . 23 2 . . . 20 20 2 33 21 41 Terrain Destroyed 954 | . . 18 48 20 . 9 2 1 . 40 52 1 16 . . 55 . 14 69 2 36 9 42 54 6 35 . 24 20 2 57 41 281 Melee 291 | . . . . 20 . 9 2 1 . . 52 1 1 . . 55 . 14 . 2 12 . 22 . . . . 18 20 2 33 6 21 Projectile 174 | . . . . . . . . . . . . . . . . . . . 5 . 1 9 10 54 6 35 . 6 . . 23 . 25 AOE 488 | . . 18 48 . . . . . . 40 . . 15 . . . . . 64 . 23 . 10 . . . . . . . . 35 235 Terrain Rammed . | . . . . . . . . . . . . . . . . . . . . . . . . . . . . . . . . . . Walls Destroyed . | . . . . . . . . . . . . . . . . . . . . . . . . . . . . . . . . . . Machines Disabled . | . . . . . . . . . . . . . . . . . . . . . . . . . . . . . . . . . . Actions | -11 -10 -10 -8 -7 -7 -7 -7 -7 -7 -6 -6 -6 -6 -6 -5 -5 -5 -5 -5 -5 -5 -4 -4 -4 -4 -4 -4 -3 -3 -3 -2 -2 -1 --------- Run | Yrd Mat Sub Mat Fac Was Fac Low Low Zio Pro Fac Low Low Dat Pro Fac Was Fac Upp Upp War Pro Fac Ext Cet Arc Hub Res Qua Sec Res Tes Acc Total 45566 | 55 1314 335 2288 1392 615 1429 1053 901 1088 627 3692 323 673 95 639 2903 831 578 678 572 1467 758 1193 2023 309 1048 151 3176 2492 152 5132 1262 4322 Wait 6912 | 25 164 5 234 185 90 108 320 44 132 150 679 1 87 . 220 621 123 130 185 76 246 203 114 488 15 620 9 148 301 17 622 176 374 Move 36229 | 18 1047 292 1772 1139 524 1271 721 836 941 472 2849 319 580 93 419 2173 663 425 477 493 1133 543 1016 1302 248 342 141 2810 2071 117 4299 1020 3663 Hop 84 | . . . . 3 1 5 . 3 . . 1 . 1 . . 3 . 1 . . 3 2 3 12 . . . 5 6 1 8 6 20 Pick Up 193 | 1 15 4 38 6 . 2 . 2 3 . 13 . . . . 11 7 2 . . 6 1 6 5 5 1 . 11 13 . 19 5 17 Fast Attach 151 | 1 2 . 21 . . 1 2 . 3 . 14 . . 1 . 2 2 . . . 5 . 3 7 5 8 . 17 5 6 14 5 27 Attach 60 | . 1 2 12 4 . . 1 1 . . 4 . . . . 4 . . . . 3 . 4 2 2 1 . 5 . . 6 1 7 Detach 25 | . 1 . 4 2 . . . . 1 . 4 . . . . . . . . . 2 . . . 1 3 . 1 . . 2 1 3 Swap 281 | 1 10 8 35 8 . 16 5 12 3 . 19 2 1 . . 4 8 3 7 1 8 2 6 8 2 7 . 14 . 1 36 23 31 Drop 308 | . 17 3 62 4 . 3 1 1 5 . 25 . . 1 . 11 9 1 . . 11 1 4 14 10 11 . 26 13 3 32 10 30 Fire 605 | 9 56 21 106 19 . 1 1 . . 5 3 . 3 . . 3 . . 9 . 7 6 13 53 21 54 1 48 . 2 60 5 99 Melee 442 | . . . 1 22 . 22 2 2 . . 81 1 1 . . 71 19 16 . 2 18 . 24 2 . . . 29 47 5 34 10 33 Ram 3 | . . . . . . . . . . . . . . . . . . . . . . . . . . . . . . . . . 3 Kick 1 | . 1 . . . . . . . . . . . . . . . . . . . . . . . . . . . . . . . . Crush 4 | . . . 3 . . . . . . . . . . . . . . . . . . . . . . 1 . . . . . . . Escape Stasis 200 | . . . . . . . . . . . . . . . . . . . . . . . . 87 . . . 62 36 . . . 15 Rewire 68 | . . . . . . . . . . . . . . . . . . . . . 25 . . 43 . . . . . . . . . Trap . | . . . . . . . . . . . . . . . . . . . . . . . . . . . . . . . . . . Miscellaneous . | . . . . . . . . . . . . . . . . . . . . . . . . . . . . . . . . . . Route ------- -11/Scrapyard -10/Materials (discovered 6 exits: [*Mat x3] / [*Min x2] / [*Sub]) -10/Subcaves -8/Materials (discovered 4 exits: *Fac x2 / *Sto x2) -7/Factory -7/Waste -7/Factory (discovered 3 exits: *Fac / *Low x2) -7/Lower Caves -7/Lower Caves (discovered 2 exits: *Fac / *Zio) -7/Zion -6/Proximity Caves -6/Factory (discovered 3 exits: *Fac / *Low x2) -6/Lower Caves -6/Lower Caves (discovered 2 exits: *Fac / *Dat) -6/Data Miner -5/Proximity Caves -5/Factory (discovered 4 exits: *Fac x3 / *Upp) -5/Waste -5/Factory (discovered 2 exits: *Upp x2) -5/Upper Caves -5/Upper Caves (discovered 2 exits: *Fac / *War) -5/Warlord -4/Proximity Caves -4/Factory (discovered 5 exits: *Res / Upp x2 / *Ext x2) -4/Extension (discovered 2 exits: *Res / *Cet) -4/Cetus (discovered 2 exits: *Res / *Arc) -4/Archives (discovered 3 exits: *Res / *Hub x2) -4/Hub_04(d) -3/Research (discovered 5 exits: *Res x3 / *Arm / *Qua) -3/Quarantine (discovered 2 exits: *Res / *Sec) -3/Section 7 -2/Research (discovered 4 exits: *Acc x2 / *Tes x2) -2/Testing -1/Access History --------- Turn | Location | Event 41 | -11/Scrapyard | Discovered new exit (range 2) 79 | -11/Scrapyard | Entered Materials 308 | -10/Materials | Build established: Mutant 350 | -10/Materials | Discovered new exit (range 10) 731 | -10/Materials | Discovered new exit (range 13) 789 | -10/Materials | Discovered new exit (range 8) 1147 | -10/Materials | Discovered new exit (range 4) 1332 | -10/Materials | Build established: Scavenger-Mutant 1479 | -10/Materials | Discovered new exit (range 9) 2062 | -10/Materials | Discovered new exit (range 7) 2074 | -10/Materials | Entered Subcaves 2231 | -10/Subcaves | Discovered new exit (range 15) 2451 | -10/Subcaves | Core integrity fell below 50% 2585 | -10/Subcaves | Entered Materials 2585 | -8/Materials | Evolved 4 slots: Propulsion x2, Utility x2 2866 | -8/Materials | Lost 3 parts (1p1u1w) 3002 | -8/Materials | Build established: Mutant 3657 | -8/Materials | Repaired Grenade Launcher 3737 | -8/Materials | Central database locked down 3743 | -8/Materials | Identified exit to Storage 3767 | -8/Materials | Core integrity fell below 50% 3965 | -8/Materials | Discovered new exit (range 10) 4581 | -8/Materials | Build established: Scavenger-Mutant 4793 | -8/Materials | Discovered new exit (range 10) 5011 | -8/Materials | Build established: Mutant 6411 | -8/Materials | Entered Factory 6411 | -7/Factory | Evolved 2 slots: Propulsion x2 6675 | -7/Factory | Build established: Sprinter 6987 | -7/Factory | Sucked down chute 6987 | -7/Factory | Entered Waste 6988 | -7/Waste | Joined by Warlord forces that had cleared the area 7080 | -7/Waste | Lost 3 allies 7090 | -7/Waste | Build established: Scout 7095 | -7/Waste | Discovered new exit (range 19) 7198 | -7/Waste | Identified exit to Factory 7198 | -7/Waste | Entered Factory 7511 | -7/Factory | Identified exit to Lower Caves 7680 | -7/Factory | Discovered new exit (range 7) 7683 | -7/Factory | Identified exit to Factory 7690 | -7/Factory | Entered Lower Caves 7714 | -7/Lower Caves | Found Alien Artifact 7714 | -7/Lower Caves | Identified Core Expander 7714 | -7/Lower Caves | Installed Core Expander, added new Propulsion slot 8058 | -7/Lower Caves | Learned location of Zion (-7) 8059 | -7/Lower Caves | Identified exit to Lower Caves 8178 | -7/Lower Caves | Spotted B-75 Beast 8193 | -7/Lower Caves | Attracted the attention of an 0b10 checkpoint 8194 | -7/Lower Caves | Entered another Lower Caves area 8201 | -7/Lower Caves | Discovered exit to Factory (range 8) 8219 | -7/Lower Caves | Learned Factory trap positions 8241 | -7/Lower Caves | Encountered a Warlord checkpoint 8322 | -7/Lower Caves | Learned 4 Factory zone layouts 8346 | -7/Lower Caves | Learned Factory terminal intel 8449 | -7/Lower Caves | Discovered new exit (range 12) 8451 | -7/Lower Caves | Identified exit to Zion 8453 | -7/Lower Caves | Entered Zion 8465 | -7/Zion | System corruption cleaned by Quarantine Array 8479 | -7/Zion | Discovered new exit (range 19) 8481 | -7/Zion | Given the Hacking Drone Bay 8482 | -7/Zion | Found Prototype Device 8484 | -7/Zion | Identified Hacking Drone Bay 8535 | -7/Zion | Learned location of Testing (-2) 8541 | -7/Zion | Gained Derelict followers 8549 | -7/Zion | Acquired unknown access codes intercepted by a Zionite 8562 | -7/Zion | Given A8's code to call for help 8682 | -7/Zion | Identified exit to Proximity Caves 8817 | -7/Zion | Entered Proximity Caves 8817 | -6/Proximity Caves | Accompanied by 3 allies 8951 | -6/Proximity Caves | Spotted B-75 Beast 8955 | -6/Proximity Caves | Learned Factory interactive machine intel 9068 | -6/Proximity Caves | Discovered exit to Factory (range 9) 9086 | -6/Proximity Caves | Entered Factory 9086 | -6/Factory | Evolved 2 slots: Utility x2 9088 | -6/Factory | Loaded intel: 125 trap records 9089 | -6/Factory | Loaded intel: 52 interactive machine locations 9090 | -6/Factory | Loaded intel: 26 terminal locations 9282 | -6/Factory | Repaired Imp. VTOL Module 9328 | -6/Factory | Repaired Mic. Nuclear Core 9367 | -6/Factory | Repaired Imp. Light Armor Plating 9373 | -6/Factory | Found Prototype Processor 9373 | -6/Factory | Identified Exp. Targeting Computer 9383 | -6/Factory | Found Exp. Targeting Computer 9553 | -6/Factory | Discovered new exit (range 7) 9554 | -6/Factory | Identified exit to Factory 9847 | -6/Factory | Discovered new exit (range 5) 9848 | -6/Factory | Identified exit to Lower Caves 10719 | -6/Factory | Entered Lower Caves 10728 | -6/Lower Caves | Encountered a Warlord checkpoint 10772 | -6/Lower Caves | Discovered new exit (range 6) 10773 | -6/Lower Caves | Identified exit to Lower Caves 10799 | -6/Lower Caves | Entered another Lower Caves area 10811 | -6/Lower Caves | Discovered exit to Factory (range 14) 10922 | -6/Lower Caves | Learned Factory stockpile data 10928 | -6/Lower Caves | Encountered a Warlord checkpoint 10967 | -6/Lower Caves | Learned Factory trap positions 11026 | -6/Lower Caves | Discovered new exit (range 20) 11030 | -6/Lower Caves | Identified exit to Data Miner 11030 | -6/Lower Caves | Entered Data Miner 11031 | -6/Data Miner | Discovered new exit (range 6) 11034 | -6/Data Miner | Met Data Miner 11042 | -6/Data Miner | Learned location of Section 7 (-3) 11042 | -6/Data Miner | Acquired the access code to Warlord's prototype stash 11044 | -6/Data Miner | Received God Mode back door access code from Data Miner 11054 | -6/Data Miner | Identified exit to Proximity Caves 11054 | -6/Data Miner | Entered Proximity Caves 11237 | -5/Proximity Caves | Received a Behemoth hack from an annoying Tinkerer 11270 | -5/Proximity Caves | Discovered exit to Factory (range 5) 11371 | -5/Proximity Caves | Entered Factory 11371 | -5/Factory | Evolved 2 slots: Power x1, Utility x1 11372 | -5/Factory | Loaded intel: 99 trap records 11534 | -5/Factory | Discovered new exit (range 8) 11535 | -5/Factory | Identified exit to Upper Caves 12112 | -5/Factory | Discovered new exit (range 21) 12128 | -5/Factory | Identified exit to Factory 12251 | -5/Factory | Spotted B-75 Beast 12295 | -5/Factory | Discovered exit to Factory (range 7) 12360 | -5/Factory | Discovered exit to Factory (range 15) 12637 | -5/Factory | Sucked down chute 12637 | -5/Factory | Entered Waste 12638 | -5/Waste | Joined by Warlord forces that had cleared the area 12654 | -5/Waste | Discovered new exit (range 13) 12835 | -5/Waste | Murdered 9 allies 12956 | -5/Waste | Identified exit to Factory 12957 | -5/Waste | Entered Factory 13080 | -5/Factory | Repaired Imp. Light Armor Plating 13207 | -5/Factory | Entered Upper Caves 13257 | -5/Upper Caves | Attracted the attention of an 0b10 checkpoint 13403 | -5/Upper Caves | Spotted B-75 Beast 13426 | -5/Upper Caves | Learned Factory terminal intel 13492 | -5/Upper Caves | Discovered new exit (range 11) 13504 | -5/Upper Caves | Identified exit to Upper Caves 13504 | -5/Upper Caves | Entered another Upper Caves area 13507 | -5/Upper Caves | Discovered exit to Factory (range 6) 13586 | -5/Upper Caves | Build established: Scavenger-Scout 13676 | -5/Upper Caves | Discovered new exit (range 8) 13677 | -5/Upper Caves | Identified exit to Warlord 13678 | -5/Upper Caves | Entered Warlord 13800 | -5/Warlord | Met Warlord 13805 | -5/Warlord | Learned Armory security intel 13805 | -5/Warlord | Learned Factory terminal intel 13805 | -5/Warlord | Learned Factory fabricator intel 13805 | -5/Warlord | Learned Armory terminal intel 13805 | -5/Warlord | Learned 4 Armory zone layouts 13805 | -5/Warlord | Learned 4 Armory zone layouts 13805 | -5/Warlord | Learned location of Quarantine (-3) 13805 | -5/Warlord | Learned Armory trap positions 13805 | -5/Warlord | Learned Quarantine emergency access door positions 13805 | -5/Warlord | Learned Armory stockpile data 13825 | -5/Warlord | Warlord's base attacked by MAIN.C 13863 | -5/Warlord | Opened Warlord's prototype stash 13870 | -5/Warlord | Found Prototype Processor 13870 | -5/Warlord | Identified Exp. Target Analyzer 13875 | -5/Warlord | Found Prototype Hackware 13875 | -5/Warlord | Identified System Mapper 14160 | -5/Warlord | Lost 3 allies 14175 | -5/Warlord | Warlord forces counterattacked 14192 | -5/Warlord | Spotted Striker 14211 | -5/Warlord | Spotted Executioner 14220 | -5/Warlord | Found Prototype Processor 14223 | -5/Warlord | Discovered new exit (range 17) 14265 | -5/Warlord | Identified exit to Proximity Caves 14290 | -5/Warlord | Entered Proximity Caves 14290 | -4/Proximity Caves | Accompanied by 3 allies 14297 | -4/Proximity Caves | Learned location of 1 exit from Research 14335 | -4/Proximity Caves | Identified Exp. Core Analyzer 14584 | -4/Proximity Caves | Build established: Hacker-Scout 14608 | -4/Proximity Caves | Discovered exit to Factory (range 20) 14612 | -4/Proximity Caves | Entered Factory 14612 | -4/Factory | Evolved 2 slots: Utility x2 14613 | -4/Factory | Loaded intel: 28 terminal locations 14614 | -4/Factory | Loaded intel: 6 fabricator locations 14866 | -4/Factory | Spotted B-86 Titan 14899 | -4/Factory | Lost 4 parts (1p2n1w) 14923 | -4/Factory | Identified exit to Upper Caves 14923 | -4/Factory | Identified exit to Extension 14997 | -4/Factory | Discovered new exit (range 18) 15009 | -4/Factory | Entered Extension 15519 | -4/Extension | Lost 3 allies 15626 | -4/Extension | Spotted B-86 Titan 15635 | -4/Extension | Enhanced Grunt warped into view, answering call for help 15637 | -4/Extension | Enhanced Grunt warped into view, answering call for help 15873 | -4/Extension | Allies destroyed B-86 Titan 15877 | -4/Extension | Spotted B-86 Titan 15904 | -4/Extension | Found Prototype Device 15937 | -4/Extension | Lost 7 allies 15953 | -4/Extension | Rescued a captive Derelict 15966 | -4/Extension | Rescued a captive Derelict 15987 | -4/Extension | Rescued a captive Derelict 16000 | -4/Extension | Lost 3 allies 16026 | -4/Extension | Rescued A7 16039 | -4/Extension | Rescued a captive Derelict 16041 | -4/Extension | Rescued a captive Derelict 16047 | -4/Extension | Discovered new exit (range 10) 16047 | -4/Extension | Discovered new exit (range 6) 16057 | -4/Extension | Identified exit to Cetus 16090 | -4/Extension | Entered Cetus 16090 | -4/Cetus | Accompanied by 4 allies (A7) 16092 | -4/Cetus | Spotted Cetus Guard 16092 | -4/Cetus | Spotted Cetus Guard 16094 | -4/Cetus | Spotted Cetus Guard 16095 | -4/Cetus | Acquired a Cetus Manufacturing Module code from A7 16109 | -4/Cetus | Identified Exp. Thermal Shield 16114 | -4/Cetus | Destroyed Cetus Guard 16114 | -4/Cetus | Spotted Cetus Guard 16118 | -4/Cetus | Allies destroyed Cetus Guard 16120 | -4/Cetus | Destroyed Cetus Guard 16128 | -4/Cetus | Destroyed Cetus Guard 16148 | -4/Cetus | Lost 3 parts (1n2u) 16178 | -4/Cetus | Started Cetus Manufacturing Module 16203 | -4/Cetus | Manufactured an Enhanced Grunt 16228 | -4/Cetus | Manufactured an Enhanced Grunt 16253 | -4/Cetus | Manufactured an Enhanced Grunt 16278 | -4/Cetus | Manufactured an Enhanced Grunt 16303 | -4/Cetus | Manufactured an Enhanced Grunt 16358 | -4/Cetus | Discovered new exit (range 22) 16397 | -4/Cetus | Spotted Cetus Guard 16397 | -4/Cetus | Spotted Cetus Guard 16397 | -4/Cetus | Spotted Cetus Guard 16409 | -4/Cetus | Allies destroyed Cetus Guard 16409 | -4/Cetus | Spotted Cetus Guard 16412 | -4/Cetus | Discovered new exit (range 22) 16413 | -4/Cetus | Allies destroyed Cetus Guard 16421 | -4/Cetus | Allies destroyed Cetus Guard 16422 | -4/Cetus | Allies destroyed Cetus Guard 16436 | -4/Cetus | Met Revision 17 16443 | -4/Cetus | Build established: Scavenger-Mutant 16479 | -4/Cetus | Found Exp. Thermal Shield 16518 | -4/Cetus | Identified exit to Archives 16531 | -4/Cetus | Entered Archives 16531 | -4/Archives | Accompanied by 7 allies (A7) 16583 | -4/Archives | Discovered new exit (range 22) 16589 | -4/Archives | Discovered new exit (range 22) 16596 | -4/Archives | Discovered new exit (range 22) 17812 | -4/Archives | Unable to access archive contents 17844 | -4/Archives | Identified exit to Hub_04(d) 17862 | -4/Archives | Entered Hub_04(d) 17862 | -4/Hub_04(d) | Accompanied by 5 allies 18035 | -4/Hub_04(d) | Discovered new exit (range 13) 18062 | -4/Hub_04(d) | Identified exit to Research 18100 | -4/Hub_04(d) | Entered Research 18100 | -3/Research | Evolved 2 slots: Power x1, Utility x1 18101 | -3/Research | Identified exit to Armory 18102 | -3/Research | Identified exit to Quarantine 18124 | -3/Research | Lost 3 allies 18178 | -3/Research | Spotted B-86 Titan 18300 | -3/Research | Revision forces began assault on 0b10 18312 | -3/Research | Met up with Revision 17++ 18592 | -3/Research | Discovered new exit (range 21) 18609 | -3/Research | Identified exit to Research 18631 | -3/Research | Discovered exit to Research (range 6) 18682 | -3/Research | Spotted B-86 Titan 18700 | -3/Research | Found Fusion Bomb Launcher 18800 | -3/Research | Research terminal network offline 18819 | -3/Research | Discovered exit to Research (range 21) 18840 | -3/Research | Build established: Scavenger-Scout 19210 | -3/Research | Repaired Centrium Medium Armor Plating 19265 | -3/Research | Entered Quarantine 19949 | -3/Quarantine | Found Alien Artifact 19964 | -3/Quarantine | Found Prototype Device 19969 | -3/Quarantine | Identified Phase Redirector 19969 | -3/Quarantine | Identified Adv. Kinecellerator 19983 | -3/Quarantine | Found Alien Artifact 19991 | -3/Quarantine | Identified Subatomic Replicator 19994 | -3/Quarantine | Met incapacitated Sigix Warrior 19994 | -3/Quarantine | Lockdown squad dispatched 20024 | -3/Quarantine | Spotted Lightning 20024 | -3/Quarantine | Spotted Lightning 20077 | -3/Quarantine | Discovered exit to Research (range 7) 20085 | -3/Quarantine | Found Alien Artifact 20085 | -3/Quarantine | Identified Terrabomb 20085 | -3/Quarantine | Used Terrabomb 20107 | -3/Quarantine | Spotted Fortress 20118 | -3/Quarantine | Discovered new exit (range 6) 20119 | -3/Quarantine | Identified exit to Section 7 20119 | -3/Quarantine | Entered Section 7 20128 | -3/Section 7 | Spotted S7 Guard 20139 | -3/Section 7 | Found Alien Artifact 20139 | -3/Section 7 | Identified Integrated Thermoelectric Network 20139 | -3/Section 7 | Installed Integrated Thermoelectric Network, gained heat-energy exchange potential 20149 | -3/Section 7 | Found Alien Artifact 20149 | -3/Section 7 | Identified Integrated Dissipator 20149 | -3/Section 7 | Installed Integrated Dissipator, increased core heat dissipation (+20) 20160 | -3/Section 7 | Found Alien Artifact 20160 | -3/Section 7 | Identified Integrated Mediator 20160 | -3/Section 7 | Installed Integrated Mediator, increased core attachment efficiency 20184 | -3/Section 7 | Discovered exit to Research (range 13) 20186 | -3/Section 7 | Entered Research 20186 | -2/Research | Warlord forces began assault on 0b10 20186 | -2/Research | Evolved 2 slots: Propulsion x1, Utility x1 20252 | -2/Research | Identified exit to Testing 20268 | -2/Research | Spotted B-90 Cyclops 20296 | -2/Research | Research machine network offline 20378 | -2/Research | Met up with Warlord 20385 | -2/Research | Discovered new exit (range 13) 20386 | -2/Research | Identified exit to Access 20576 | -2/Research | Borebot progress halted 20586 | -2/Research | Lost 4 allies 20601 | -2/Research | Spotted B-90 Cyclops 20646 | -2/Research | Spotted Striker 20672 | -2/Research | Borebot progress halted 20674 | -2/Research | Spotted Striker 20689 | -2/Research | Lost 3 allies 20793 | -2/Research | Found Prototype Slashing Weapon 20793 | -2/Research | Identified Particle Cleaver 20858 | -2/Research | Spotted Striker 20859 | -2/Research | Destroyed Striker 20875 | -2/Research | Spotted Striker 20878 | -2/Research | Spotted Executioner 20955 | -2/Research | Lost 3 allies 20980 | -2/Research | Discovered exit to Access (range 3) 20987 | -2/Research | Spotted Striker 20996 | -2/Research | Spotted Striker 21159 | -2/Research | Spotted Striker 21198 | -2/Research | Found Prototype Processor 21198 | -2/Research | Identified Exp. Melee Analysis Suite 21200 | -2/Research | Found Particle Cleaver 21211 | -2/Research | Spotted Striker 21714 | -2/Research | Entered Testing 21718 | -2/Testing | Found Prototype Hackware 21720 | -2/Testing | Identified Exp. System Shield 21928 | -2/Testing | Spotted PG-RK0O49UJ7S 22024 | -2/Testing | Found Prototype Hackware 22028 | -2/Testing | Identified Ghost Barrier 22030 | -2/Testing | Spotted Striker 22030 | -2/Testing | Spotted Striker 22035 | -2/Testing | Found Prototype Energy Cannon 22035 | -2/Testing | Identified Hpw. Disruptor Cannon 22047 | -2/Testing | Discovered exit to Access (range 5) 22049 | -2/Testing | Found Prototype Processor 22076 | -2/Testing | Found Prototype Launcher 22076 | -2/Testing | Identified Z-bomb Delivery System 22079 | -2/Testing | Identified Spectral Analyzer 22086 | -2/Testing | Entered Access 22086 | -1/Access | Evolved 2 slots: Utility x1, Weapon x1 22220 | -1/Access | Found Prototype Device 22220 | -1/Access | Identified Exp. Sensor Array 22222 | -1/Access | Found Exp. Sensor Array 22256 | -1/Access | Spotted B-99 Colossus 22373 | -1/Access | Build established: Hacker-Scout 22385 | -1/Access | Search patrols dispatched 22594 | -1/Access | Garrison activated, responded to threat 22615 | -1/Access | Search patrols dispatched 22836 | -1/Access | Search patrols dispatched 22877 | -1/Access | Spotted B-99 Colossus 22894 | -1/Access | Found Prototype Device 22894 | -1/Access | Identified Exp. Terrain Scanner 22937 | -1/Access | Build established: Hacker-Sprinter 22945 | -1/Access | Spotted B-99 Colossus 22962 | -1/Access | Spotted B-99 Colossus 23086 | -1/Access | Search patrols dispatched 23117 | -1/Access | System corruption reached 10% 23164 | -1/Access | Lost 6 parts (2p1n2u1w) 23241 | -1/Access | Lost 4 parts (1n3u) 23291 | -1/Access | Found Fusion Bomb Launcher 23305 | -1/Access | Core integrity fell below 50% 23437 | -1/Access | Found Exp. Terrain Scanner 23452 | -1/Access | Found Exp. Terrain Scanner 23584 | -1/Access | System corruption reached 30% 23586 | -1/Access | First assault squad dispatched 23628 | -1/Access | Core integrity fell below 20% 23633 | -1/Access | Destroyed by P-80 Master with Gamma Rifle Last Messages --------------- 23604_ The unstable cave ceiling collapses. 23604_ Arm. Heavy Treads destroyed. 23604_ Triangulator destroyed. 23605_ The unstable cave ceiling collapses. 23607_ P-80 Master resets K-01 Serf, system corruption cleaned. 23609_ System corrupted: Matter fused (-10). 23619_ Acquired 8 matter. 23625_ System corrupted: Energy discharge (-28). 23625_ Imp. Core Shielding destroyed. 23626_ Slammed into P-80 Master. 23628_ P-80 Master knocked back. 23633_ C-30 ARC bursts open, deploying its payload. 23633_ S-43 Plague unfolds itself. 23633_ U-05 Engineer destroyed. 23633_ K-01 Serf destroyed. 23633_ Destroyed Unknown Hover Unit. 23633_ P-80 Master destroyed. 23633_ Destroyed Gamma Rifle. 23633_ Z-bomb Delivery System destroyed. 23633_ P-80 Master resets P-80 Master, system corruption cleaned. Map ----- +----------------------------------------------------+ | =?# #????????????????????????# | | # #????????????????????????# !! | | # #?????????##############?#! !! | | " + #?????????# ! ### !! | | "" # #?????????# / | | " # #?????????#" ### | | ?# #?????????#" #?# | | ?# ########??#" #?# | | ??# #??#T #?############ | | ##### #??#" #????????????# | | #??#"" #????????????# | | ##### #??#"" #????????????? | | ????########## #??# #????????????? | | ?????????????# #??# #????????????? | | #####????????# #??# #????????????? | | #????????# #??#####+########?????????????? | | #????????# ##### #???????????????????? | | #??####### #???????????????????? | | T" ##??????????????????? | | # ########### "" #??????????????????? | | # #?????????# [ s #??????????????????? | | # #?#????#?###### # #!% s #????# ?????????????? | | + #???????????# ########%s# ####????????????????? | | # #???######### #ss## #????????#???????? | | # #???# ## | # #??????#?????????? | | # ##### ## @ # ##?# ######????# | | # ## ## #?# ## ###### | | # ## p p # #??# ## | | ####+### # ######p # ##?# ## ###### | | !# # # pp # ####?# ### ##????? | | ### ### ##== p # ##???##+###?# #?????? | | " [#?# #?## ! ## p +######???# #???# #???### | | """ #?# #??## ## | #???# #???# #???# | | G #?# #??## ! # p ###?# ##### #???# | | """ #?# #?### ## ! ##?## #???# | | " ! #?# #??## #; #?######### #???# | | #?# ##### # #?# # #???# | | ! !#?# # #?# ! # #???# | | ########?# # ""T"" #?#"" # #???# | | #???#????######## # """"" #?#"" # #???# | | #??##???????????##= ##############"T = + #???# | | ????#?#?########## # #"" # ####### | | ????# """"" # # #"" # ## | | ??#?# """T"" # + ! # # ## | | ????# = " # !! # # ## | | ????# # # # ## | | #???# ###################### ## "" | | #???# "" / #??##############?#??# ## """ | | ?????? "" #?## #????# ## "" | | ???#?? "" #??# #????# ## "" | +----------------------------------------------------+ Best States ------------- Heat Dissipation 103 Energy Generation 63 Energy Capacity 1150 Matter Stores 300 Matter Capacity 300 Sight Range 24 Robot Scan Range 20 Terrain Scan Range 30 Terrain Scan Density 10 ECM Strength 1 Jamming Range 16 Power Amplification 40 Additional Mass Support 16 Armor Coverage 600 Resistance: TH 30 Core Shielding 30 Utility Shielding 66 Point Defense Rating 240 Evasion (%) 82 Melee Accuracy 12 Target Analysis 10 Core Analysis 8 Armor Integrity Analysis 30 Recoil Reduction 8 Kinecelleration 50 Offensive Hacking 32 Defensive Hacking 20 Item Schematics ----------------- Imp. VTOL Module | -7/Factory | Scanalyzed Imp. Light Armor Plating | -7/Factory | Scanalyzed Imp. Utility Shielding | -6/Factory | Hacked Railgun | -6/Factory | Hacked Combat Drone Bay | -6/Data Miner | Free Lgt. Regenerative Plating | -6/Data Miner | Free Cld. Nuclear Pulse Thruster | -6/Data Miner | Free Exp. Heat Sink | -6/Data Miner | Free Cld. Plasma Rifle | -6/Data Miner | Free Adv. Medium Treads | -6/Data Miner | Free Imp. Force Field | -6/Data Miner | Free Hvy. Disruptor Cannon | -6/Data Miner | Free Imp. Plasma Cutter | -6/Data Miner | Free Adv. KE Penetrator | -3/Section 7 | Archive Robot Schematics ------------------ G-50 Soldier | -6/Data Miner | Free A-15 Conveyor | -6/Data Miner | Free H-66 Slayer | -6/Data Miner | Free M-22 Extractor | -6/Data Miner | Free L-61 Swordsman | -6/Data Miner | Free G-67 Veteran | -6/Data Miner | Free A-02 Transporter | -3/Section 7 | Archive Fabricated ------------ Nothing Alien Tech Used ----------------- Core Expander Terrabomb Integrated Thermoelectric Network Integrated Dissipator Integrated Mediator Achievements -------------- Speed Demon Whoosh! Challenges ------------ None Game ------ Seed TitaniumDefenseRailgun Manual? 0 Play Time 11:06:52 Cumulative 402.2 hours Start 2024.05.17 @ 14:54:44 End 2024.05.19 @ 20:43:25 Sessions 7 Manual Loads 0 Difficulty Rogue Special Mode None Game No. 126 Rogue 87 Adventurer 0 Explorer 39 Win Type - Total 12 Types 10/1/1/0/0/0/0/0/0 Lore% 73 Gallery% 79 Achievement% 69 Wizard Run 0 Options --------- Layout 0 ASCII 1 Keyboard 1 Movement Arrows Keybinds 0 Fullscreen 2 Font 36/Smallcaps Map View 76x50 Zoom Use 0% Tactical HUD 1 Map Filters NONE Filters NONE Steam 1 RUN: d366f2af-2ba2-476b-b378-1535f3eabb89